fUSD/lending_fUSD_20240615
["ID","MTS","AMOUNT","RATE_DAILY","PERIOD"]
[329576687,1718454646319,-442.0,0.00017576,2]
[329576688,1718454646338,-811.0,0.00017576,2]
[329576689,1718454646360,-192.906,0.00017576,2]
[329576690,1718454646392,-1067.0,0.00017576,2]
[329576691,1718454646404,-520.96,0.00017711,2]
[329576692,1718454646447,-210.17892186,0.00017859,2]
[329576693,1718454646462,-355.0,0.000182,2]
[329576694,1718454646485,-1000.0,0.00018476,2]
[329576695,1718454646504,-282.66982,0.0001886,2]
[329576696,1718454646517,-165.44645123,0.00019178,2]
[329576697,1718454646533,-500.0,0.00019178,2]
[329576698,1718454646572,-419.25026882,0.00019178,2]
[329576699,1718454646603,-500.0,0.00019178,2]
[329576700,1718454646625,-500.0,0.00019178,2]
[329576701,1718454646640,-446.16216842,0.00019178,2]
[329576702,1718454646652,-500.0,0.00019178,2]
[329576703,1718454646676,-500.0,0.00019178,2]
[329576704,1718454646690,-590.66022021,0.00019178,2]
[329576705,1718454646705,-1000.0,0.000196,2]
[329576706,1718454646718,-672.0,0.000196,2]
[329576707,1718454646734,-520.96,0.00019974,2]
[329576708,1718454646757,-3897.73390955,0.0002,2]
[329576709,1718454646788,-189.7696383,0.0002,2]
[329576710,1718454646802,-6269.45372724,0.0002,2]
[329576712,1718454646820,-187.74893441,0.0002,2]
[329576713,1718454646847,-865.86350875,0.0002,2]
[329576714,1718454646864,-155.0,0.0002,2]
[329576715,1718454646881,-14620.1483403,0.0002,2]
[329576718,1718454646917,-226.79813277,0.000201,2]
[329576720,1718454646938,-1000.0,0.00020324,2]
[329576722,1718454646955,-546.0,0.00020576,2]
[329576723,1718454646970,-232.291,0.00020576,2]
[329576725,1718454646988,-1068.689,0.00020576,2]
[329576726,1718454647018,-1184.036,0.00020576,2]
[329576727,1718454647034,-616.0,0.00020576,2]
[329576728,1718454647047,-1652.0,0.00020576,2]
[329576729,1718454647069,-442.0,0.00020576,2]
[329576730,1718454647084,-811.0,0.00020576,2]
[329576731,1718454647100,-165.0,0.00020576,2]
[329576732,1718454647119,-1067.0,0.00020576,2]
[329576733,1718454647134,-11833.59454646,0.000207,2]
[329576734,1718454647159,-10000.0,0.00021,2]
[329576735,1718454647178,-1250.0,0.00021,2]
[329576736,1718454647207,-282.66983,0.0002136,2]
[329576737,1718454647225,-215.0,0.00021661,2]
[329576738,1718454647259,-171.46657583,0.00021717,2]
[329576739,1718454647300,-184.15167195,0.00021717,2]
[329576740,1718454647315,-34931.97428448,0.00021761,2]
[329576741,1718454647329,-700.0,0.000218,7]
[329576742,1718454647341,-3874.46383501,0.00021814,2]
[329576743,1718454647368,-549.0,0.00021817,2]
[329576744,1718454647381,-160.43667704,0.00021817,2]
[329576745,1718454647397,-9279.1516,0.00021817,2]
[329576746,1718454647415,-255.24633804,0.00021817,2]
[329576747,1718454647434,-11878.41426193,0.00021817,2]
[329576748,1718454647458,-1000.0,0.00021817,2]
[329576749,1718454647470,-210.17892186,0.00021817,2]
[329576750,1718454647483,-1100.0,0.000219,7]
[329576752,1718454647501,-4066.30684285,0.00021914,2]
[329576753,1718454647523,-1017.83777918,0.00021914,2]
[329576754,1718454647549,-649.43721582,0.00021915,2]
[329576755,1718454647594,-155.0,0.00021915,2]
[329576756,1718454647622,-399.52266653,0.00021915,2]
[329576757,1718454647660,-3959.95580288,0.00021915,2]
[329576758,1718454647673,-500.0,0.00021917,2]
[329576759,1718454647697,-502.27144762,0.00021917,2]
[329576760,1718454647723,-555.1273593,0.00021917,2]
[329576761,1718454647740,-500.0,0.00021917,2]
[329576762,1718454647756,-501.57414411,0.00021917,2]
[329576763,1718454647799,-500.49134274,0.00021917,2]
[329576764,1718454647813,-502.75411094,0.00021917,2]
[329576765,1718454647839,-257.25996566,0.00021917,2]
[329576766,1718454647859,-627.8365504,0.00021917,2]
[329576767,1718454647876,-200.8586783,0.00021917,2]
[329576768,1718454647889,-519.13787257,0.00021917,2]
[329576769,1718454647902,-500.0,0.00021917,2]
[329576770,1718454647922,-510.12199306,0.00021917,2]
[329576771,1718454647938,-519.19582435,0.00021917,2]
[329576772,1718454647952,-506.66644931,0.00021917,2]
[329576773,1718454647971,-502.68487363,0.00021917,2]
[329576774,1718454647997,-513.62714134,0.00021917,2]
[329576775,1718454648017,-506.1085359,0.00021917,2]
[329576776,1718454648039,-504.44275395,0.00021917,2]
[329576777,1718454648054,-507.32275242,0.00021917,2]
[329576778,1718454648080,-539.54455133,0.00021917,2]
[329576779,1718454648093,-503.28106605,0.00021917,2]
[329576780,1718454648109,-393.73991869,0.00021917,2]
[329576781,1718454648138,-504.44094449,0.00021917,2]
[329576782,1718454648155,-508.16903095,0.00021917,2]
[329576783,1718454648172,-507.8838956,0.00021917,2]
[329576784,1718454648197,-300.36701674,0.00021917,2]
[329576785,1718454648217,-500.0,0.00021917,2]
[329576786,1718454648230,-500.0,0.00021917,2]
[329576787,1718454648254,-500.0,0.00021917,2]
[329576788,1718454648287,-500.0,0.00021917,2]
[329576789,1718454648307,-500.0,0.00021917,2]
[329576790,1718454648363,-500.0,0.00021917,2]
[329576791,1718454648390,-500.0,0.00021917,2]
[329576792,1718454648431,-637.98397908,0.00021917,2]
[329576793,1718454648448,-370.91940214,0.00021917,2]
[329576794,1718454648469,-500.0,0.00021917,2]
[329576795,1718454648516,-500.0,0.00021917,2]
[329576796,1718454648530,-397.57930983,0.00021917,2]
[329576797,1718454648553,-195.5702395,0.00021917,2]
[329576798,1718454648572,-230.03345398,0.00021917,2]
[329576799,1718454648589,-500.0,0.00021917,2]
[329576800,1718454648606,-500.0,0.00021917,2]
[329576801,1718454648625,-500.0,0.00021917,2]
[329576802,1718454648648,-500.0,0.00021917,2]
[329576803,1718454648685,-500.0,0.00021917,2]
[329576804,1718454648715,-500.0,0.00021917,2]
[329576805,1718454648737,-500.0,0.00021917,2]
[329576806,1718454648758,-500.0,0.00021917,2]
[329576807,1718454648775,-501.03543973,0.00021917,2]
[329576808,1718454648802,-500.0,0.00021917,2]
[329576809,1718454648815,-500.0,0.00021917,2]
[329576810,1718454648850,-500.0,0.00021917,2]
[329576811,1718454648870,-500.0,0.00021917,2]
[329576812,1718454648892,-500.0,0.00021917,2]
[329576813,1718454648907,-500.0,0.00021917,2]
[329576814,1718454648923,-500.0,0.00021917,2]
[329576815,1718454648936,-426.97262755,0.00021917,2]
[329576816,1718454648980,-500.0,0.00021917,2]
[329576817,1718454649002,-500.0,0.00021917,2]
[329576818,1718454649019,-500.0,0.00021917,2]
[329576819,1718454649046,-500.0,0.00021917,2]
[329576820,1718454649059,-640.49466947,0.00021917,2]
[329576821,1718454649077,-500.0,0.00021917,2]
[329576822,1718454649129,-500.0,0.00021917,2]
[329576823,1718454649171,-500.0,0.00021917,2]
[329576824,1718454649196,-500.0,0.00021917,2]
[329576825,1718454649212,-500.0,0.00021917,2]
[329576826,1718454649237,-607.00860411,0.00021917,2]
[329576827,1718454649254,-500.0,0.00021917,2]
[329576828,1718454649270,-500.0,0.00021917,2]
[329576829,1718454649286,-500.0,0.00021917,2]
[329576830,1718454649298,-500.0,0.00021917,2]
[329576831,1718454649311,-500.0,0.00021917,2]
[329576832,1718454649326,-500.0,0.00021917,2]
[329576833,1718454649350,-500.0,0.00021917,2]
[329576834,1718454649385,-500.0,0.00021917,2]
[329576835,1718454649402,-500.0,0.00021917,2]
[329576836,1718454649416,-500.0,0.00021917,2]
[329576837,1718454649444,-500.0,0.00021917,2]
[329576838,1718454649455,-500.0,0.00021917,2]
[329576839,1718454649467,-500.0,0.00021917,2]
[329576840,1718454649480,-500.0,0.00021917,2]
[329576841,1718454649494,-500.0,0.00021917,2]
[329576842,1718454649511,-500.0,0.00021917,2]
[329576843,1718454649544,-500.0,0.00021917,2]
[329576844,1718454649561,-382.73488542,0.00021917,2]
[329576845,1718454649580,-500.0,0.00021917,2]
[329576846,1718454649604,-500.0,0.00021917,2]
[329576847,1718454649621,-500.0,0.00021917,2]
[329576848,1718454649644,-500.0,0.00021917,2]
[329576849,1718454649662,-500.0,0.00021917,2]
[329576850,1718454649677,-500.0,0.00021917,2]
[329576851,1718454649694,-500.0,0.00021917,2]
[329576852,1718454649708,-162.2398119,0.00021917,2]
[329576853,1718454649721,-383.92408742,0.00021917,2]
[329576854,1718454649738,-402.85473695,0.00021917,2]
[329576855,1718454649753,-500.0,0.00021917,2]
[329576856,1718454649767,-555.89582165,0.00021917,2]
[329576857,1718454649787,-500.0,0.00021917,2]
[329576859,1718454649802,-500.0,0.00021917,2]
[329576861,1718454649816,-632.21516416,0.00021917,2]
[329576863,1718454649828,-500.0,0.00021917,2]
[329576865,1718454649841,-500.0,0.00021917,2]
[329576867,1718454649861,-500.0,0.00021917,2]
[329576868,1718454649883,-500.0,0.00021917,2]
[329576871,1718454649899,-575.78807615,0.00021917,2]
[329576872,1718454649913,-500.0,0.00021917,2]
[329576874,1718454649930,-500.0,0.00021917,2]
[329576876,1718454649946,-500.0,0.00021917,2]
[329576878,1718454649959,-500.0,0.00021917,2]
[329576880,1718454649972,-635.07239252,0.00021917,2]
[329576881,1718454649983,-500.0,0.00021917,2]
[329576882,1718454649998,-500.0,0.00021917,2]
[329576883,1718454650024,-500.0,0.00021917,2]
[329576884,1718454650035,-500.0,0.00021917,2]
[329576885,1718454650057,-500.0,0.00021917,2]
[329576886,1718454650068,-500.0,0.00021917,2]
[329576887,1718454650092,-500.0,0.00021917,2]
[329576889,1718454650416,-500.0,0.00021917,2]
[329576890,1718454650440,-500.0,0.00021917,2]
[329576891,1718454650454,-500.0,0.00021917,2]
[329576892,1718454650468,-500.0,0.00021917,2]
[329576893,1718454650486,-500.0,0.00021917,2]
[329576894,1718454650558,-287.1966544,0.00021917,2]
[329576895,1718454650577,-500.0,0.00021917,2]
[329576896,1718454650590,-500.0,0.00021917,2]
[329576897,1718454650611,-500.0,0.00021917,2]
[329576898,1718454650623,-282.56823014,0.00021917,2]
[329576899,1718454650641,-500.0,0.00021917,2]
[329576900,1718454650652,-590.5221621,0.00021917,2]
[329576901,1718454650664,-560.91748717,0.00021917,2]
[329576902,1718454650678,-500.0,0.00021917,2]
[329576903,1718454650692,-500.0,0.00021917,2]
[329576904,1718454650703,-500.0,0.00021917,2]
[329576905,1718454650716,-500.0,0.00021917,2]
[329576906,1718454650783,-500.0,0.00021917,2]
[329576907,1718454650829,-500.0,0.00021917,2]
[329576908,1718454650849,-500.0,0.00021917,2]
[329576909,1718454650865,-500.0,0.00021917,2]
[329576910,1718454650913,-500.0,0.00021917,2]
[329576911,1718454650957,-500.0,0.00021917,2]
[329576912,1718454650980,-500.0,0.00021917,2]
[329576913,1718454650993,-500.0,0.00021917,2]
[329576914,1718454651019,-500.0,0.00021917,2]
[329576915,1718454651042,-500.0,0.00021917,2]
[329576916,1718454651087,-500.0,0.00021917,2]
[329576917,1718454651138,-500.0,0.00021917,2]
[329576918,1718454651154,-500.0,0.00021917,2]
[329576919,1718454651187,-500.0,0.00021917,2]
[329576920,1718454651216,-500.0,0.00021917,2]
[329576921,1718454651255,-500.0,0.00021917,2]
[329576922,1718454651269,-589.4,0.00021917,2]
[329576923,1718454651279,-500.0,0.00021917,2]
[329576924,1718454651291,-500.0,0.00021917,2]
[329576925,1718454651325,-500.0,0.00021917,2]
[329576926,1718454651370,-500.0,0.00021917,2]
[329576927,1718454651394,-500.0,0.00021917,2]
[329576928,1718454651421,-500.0,0.00021917,2]
[329576929,1718454651444,-500.0,0.00021917,2]
[329576930,1718454651457,-500.0,0.00021917,2]
[329576931,1718454651476,-500.0,0.00021917,2]
[329576932,1718454651490,-500.0,0.00021917,2]
[329576933,1718454651508,-500.0,0.00021917,2]
[329576934,1718454651529,-500.0,0.00021917,2]
[329576935,1718454651541,-500.0,0.00021917,2]
[329576936,1718454651557,-585.63,0.00021917,2]
[329576937,1718454651580,-500.0,0.00021917,2]
[329576938,1718454651591,-500.0,0.00021917,2]
[329576939,1718454651602,-500.0,0.00021917,2]
[329576940,1718454651615,-500.0,0.00021917,2]
[329576941,1718454651627,-500.0,0.00021917,2]
[329576942,1718454651641,-500.0,0.00021917,2]
[329576943,1718454651652,-500.0,0.00021917,2]
[329576944,1718454651663,-500.0,0.00021917,2]
[329576945,1718454651684,-500.0,0.00021917,2]
[329576946,1718454651697,-500.0,0.00021917,2]
[329576947,1718454651712,-500.0,0.00021917,2]
[329576948,1718454651731,-500.0,0.00021917,2]
[329576949,1718454651742,-500.0,0.00021917,2]
[329576950,1718454651762,-500.0,0.00021917,2]
[329576951,1718454651773,-500.0,0.00021917,2]
[329576952,1718454651784,-500.0,0.00021917,2]
[329576953,1718454651797,-512.06095214,0.00021917,2]
[329576954,1718454651807,-500.0,0.00021917,2]
[329576955,1718454651821,-500.0,0.00021917,2]
[329576956,1718454651833,-254.2021724,0.00021917,2]
[329576957,1718454651847,-500.0,0.00021917,2]
[329576958,1718454651859,-500.0,0.00021917,2]
[329576959,1718454651870,-500.0,0.00021917,2]
[329576960,1718454651886,-255.00554659,0.00021917,2]
[329576961,1718454651899,-500.0,0.00021917,2]
[329576962,1718454651911,-500.0,0.00021917,2]
[329576963,1718454651922,-500.0,0.00021917,2]
[329576964,1718454651939,-500.0,0.00021917,2]
[329576965,1718454651966,-500.0,0.00021917,2]
[329576966,1718454651977,-500.0,0.00021917,2]
[329576967,1718454651991,-553.00963711,0.00021917,2]
[329576968,1718454652012,-601.59000581,0.00021917,2]
[329576969,1718454652025,-500.0,0.00021917,2]
[329576970,1718454652041,-500.0,0.00021917,2]
[329576971,1718454652053,-500.0,0.00021917,2]
[329576972,1718454652068,-500.0,0.00021917,2]
[329576973,1718454652091,-500.0,0.00021917,2]
[329576974,1718454652108,-500.0,0.00021917,2]
[329576975,1718454652128,-500.0,0.00021917,2]
[329576976,1718454652155,-500.0,0.00021917,2]
[329576977,1718454652189,-500.0,0.00021917,2]
[329576978,1718454652204,-500.0,0.00021917,2]
[329576979,1718454652224,-500.0,0.00021917,2]
[329576980,1718454652240,-500.0,0.00021917,2]
[329576981,1718454652260,-500.0,0.00021917,2]
[329576982,1718454652281,-500.0,0.00021917,2]
[329576983,1718454652291,-500.0,0.00021917,2]
[329576984,1718454652302,-500.0,0.00021917,2]
[329576985,1718454652313,-500.0,0.00021917,2]
[329576986,1718454652325,-500.0,0.00021917,2]
[329576987,1718454652341,-648.66,0.00021917,2]
[329576988,1718454652352,-500.0,0.00021917,2]
[329576989,1718454652374,-500.0,0.00021917,2]
[329576990,1718454652385,-500.0,0.00021917,2]
[329576991,1718454652396,-500.0,0.00021917,2]
[329576992,1718454652413,-500.0,0.00021917,2]
[329576993,1718454652455,-500.0,0.00021917,2]
[329576994,1718454652471,-500.0,0.00021917,2]
[329576995,1718454652492,-500.0,0.00021917,2]
[329576996,1718454652512,-500.0,0.00021917,2]
[329576997,1718454652524,-500.0,0.00021917,2]
[329576998,1718454652540,-500.0,0.00021917,2]
[329576999,1718454652554,-500.0,0.00021917,2]
[329577000,1718454652566,-624.64,0.00021917,2]
[329577001,1718454652580,-500.0,0.00021917,2]
[329577002,1718454652591,-500.0,0.00021917,2]
[329577003,1718454652606,-120.56794747,0.00021917,2]
[329577004,1718454652714,-379.43205253,0.00021917,2]
[329577005,1718454652724,-192.58813866,0.00021917,2]
[329577006,1718454652737,-500.0,0.00021917,2]
[329577007,1718454652748,-500.0,0.00021917,2]
[329577008,1718454652761,-500.0,0.00021917,2]
[329577009,1718454652780,-500.0,0.00021917,2]
[329577010,1718454652813,-500.0,0.00021917,2]
[329577011,1718454652842,-500.0,0.00021917,2]
[329577012,1718454652853,-500.0,0.00021917,2]
[329577013,1718454652870,-500.0,0.00021917,2]
[329577014,1718454652887,-500.0,0.00021917,2]
[329577015,1718454652898,-500.0,0.00021917,2]
[329577016,1718454652912,-500.0,0.00021917,2]
[329577017,1718454652939,-500.0,0.00021917,2]
[329577018,1718454652951,-500.0,0.00021917,2]
[329577019,1718454652967,-408.29713466,0.00021917,2]
[329577020,1718454652980,-500.0,0.00021917,2]
[329577021,1718454652995,-198.65802749,0.00021917,2]
[329577022,1718454653012,-307.00197251,0.00021917,2]
[329577023,1718454653022,-414.84994795,0.00021917,2]
[329577024,1718454653035,-85.15005205,0.00021917,2]
[329577025,1718454653046,-446.96494795,0.00021917,2]
[329577026,1718454653062,-53.03505205,0.00021917,2]
[329577027,1718454653081,-500.0,0.00021917,2]
[329577028,1718454653094,-645.4,0.00021917,2]
[329577029,1718454653108,-500.0,0.00021917,2]
[329577030,1718454653125,-491.8841496,0.00021917,2]
[329577031,1718454653137,-500.0,0.00021917,2]
[329577032,1718454653148,-500.0,0.00021917,2]
[329577033,1718454653161,-124.88079835,0.00021917,2]
[329577034,1718454653349,-327.53502879,0.000139,2]
[329577035,1718454653364,-393.5550426,0.00021917,2]
[329577036,1718454653387,-500.0,0.00021917,2]
[329577037,1718454653403,-500.0,0.00021917,2]
[329577038,1718454653416,-500.0,0.00021917,2]
[329577039,1718454653446,-531.27187359,0.00021917,2]
[329577040,1718454653482,-500.0,0.00021917,2]
[329577041,1718454653509,-500.0,0.00021917,2]
[329577042,1718454653522,-500.0,0.00021917,2]
[329577043,1718454653548,-514.73998674,0.00021917,2]
[329577044,1718454653577,-500.0,0.00021917,2]
[329577045,1718454653616,-563.32,0.00021917,2]
[329577046,1718454653638,-500.0,0.00021917,2]
[329577047,1718454653664,-500.0,0.00021917,2]
[329577048,1718454653676,-500.0,0.00021917,2]
[329577049,1718454653704,-418.63348918,0.00021917,2]
[329577050,1718454653716,-150.0,0.00021917,2]
[329577051,1718454653732,-368.39700966,0.00021917,2]
[329577052,1718454653748,-500.0,0.00021917,2]
[329577053,1718454653771,-500.0,0.00021917,2]
[329577054,1718454653784,-500.0,0.00021917,2]
[329577055,1718454653817,-500.0,0.00021917,2]
[329577056,1718454653828,-500.0,0.00021917,2]
[329577057,1718454653838,-500.0,0.00021917,2]
[329577058,1718454653860,-500.0,0.00021917,2]
[329577059,1718454653873,-500.0,0.00021917,2]
[329577060,1718454653898,-385.70865472,0.00021917,2]
[329577061,1718454653918,-500.0,0.00021917,2]
[329577062,1718454653939,-500.0,0.00021917,2]
[329577063,1718454653970,-300.0,0.00021917,2]
[329577064,1718454653985,-500.0,0.00021917,2]
[329577065,1718454653997,-500.0,0.00021917,2]
[329577066,1718454654016,-500.0,0.00021917,2]
[329577067,1718454654052,-500.0,0.00021917,2]
[329577068,1718454654074,-500.0,0.00021917,2]
[329577069,1718454654090,-500.0,0.00021917,2]
[329577070,1718454654101,-500.0,0.00021917,2]
[329577071,1718454654114,-500.0,0.00021917,2]
[329577072,1718454654137,-500.0,0.00021917,2]
[329577073,1718454654165,-500.0,0.00021917,2]
[329577074,1718454654177,-500.0,0.00021917,2]
[329577075,1718454654197,-500.0,0.00021917,2]
[329577076,1718454654210,-500.0,0.00021917,2]
[329577077,1718454654232,-500.0,0.00021917,2]
[329577078,1718454654245,-500.0,0.00021917,2]
[329577079,1718454654255,-500.0,0.00021917,2]
[329577080,1718454654272,-500.0,0.00021917,2]
[329577081,1718454654285,-500.0,0.00021917,2]
[329577082,1718454654301,-500.0,0.00021917,2]
[329577083,1718454654316,-500.0,0.00021917,2]
[329577084,1718454654327,-500.0,0.00021917,2]
[329577085,1718454654348,-500.0,0.00021917,2]
[329577086,1718454654363,-500.0,0.00021917,2]
[329577087,1718454654376,-500.0,0.00021917,2]
[329577088,1718454654387,-500.0,0.00021917,2]
[329577089,1718454654399,-500.0,0.00021917,2]
[329577090,1718454654411,-157.54070931,0.00021917,2]
[329577091,1718454654427,-500.0,0.00021917,2]
[329577092,1718454654450,-511.8778299,0.00021917,2]
[329577093,1718454654482,-500.0,0.00021917,2]
[329577094,1718454654505,-500.0,0.00021917,2]
[329577095,1718454654534,-500.0,0.00021917,2]
[329577096,1718454654546,-500.0,0.00021917,2]
[329577097,1718454654562,-500.0,0.00021917,2]
[329577098,1718454654580,-272.64699454,0.00021917,2]
[329577099,1718454654603,-537.48076368,0.00021917,2]
[329577100,1718454654614,-500.0,0.00021917,2]
[329577101,1718454654625,-500.0,0.00021917,2]
[329577102,1718454654638,-500.0,0.00021917,2]
[329577103,1718454654661,-500.0,0.00021917,2]
[329577104,1718454654683,-500.0,0.00021917,2]
[329577105,1718454654697,-500.0,0.00021917,2]
[329577106,1718454654707,-500.0,0.00021917,2]
[329577107,1718454654718,-500.0,0.00021917,2]
[329577108,1718454654730,-500.0,0.00021917,2]
[329577109,1718454654740,-500.0,0.00021917,2]
[329577110,1718454654751,-500.0,0.00021917,2]
[329577111,1718454654762,-500.0,0.00021917,2]
[329577112,1718454654775,-500.0,0.00021917,2]
[329577113,1718454654797,-500.0,0.00021917,2]
[329577114,1718454654813,-666.24,0.00021917,2]
[329577115,1718454654829,-498.1667876,0.00021917,2]
[329577116,1718454654848,-500.0,0.00021917,2]
[329577117,1718454654860,-500.0,0.00021917,2]
[329577118,1718454654880,-594.6,0.00021917,2]
[329577119,1718454654893,-500.0,0.00021917,2]
[329577120,1718454654904,-500.0,0.00021917,2]
[329577121,1718454654917,-500.0,0.00021917,2]
[329577122,1718454654935,-500.0,0.00021917,2]
[329577123,1718454654950,-500.0,0.00021917,2]
[329577124,1718454654969,-500.0,0.00021917,2]
[329577125,1718454655001,-500.0,0.00021917,2]
[329577126,1718454655019,-500.0,0.00021917,2]
[329577127,1718454655037,-500.0,0.00021917,2]
[329577128,1718454655062,-500.0,0.00021917,2]
[329577129,1718454655096,-500.0,0.00021917,2]
[329577130,1718454655108,-500.0,0.00021917,2]
[329577131,1718454655130,-500.0,0.00021917,2]
[329577132,1718454655144,-500.0,0.00021917,2]
[329577133,1718454655163,-500.0,0.00021917,2]
[329577134,1718454655182,-500.0,0.00021917,2]
[329577135,1718454655208,-500.0,0.00021917,2]
[329577136,1718454655219,-500.0,0.00021917,2]
[329577137,1718454655234,-500.0,0.00021917,2]
[329577138,1718454655248,-500.0,0.00021917,2]
[329577139,1718454655273,-500.0,0.00021917,2]
[329577140,1718454655285,-500.0,0.00021917,2]
[329577141,1718454655301,-500.0,0.00021917,2]
[329577142,1718454655326,-563.52,0.00021917,2]
[329577143,1718454655338,-500.0,0.00021917,2]
[329577144,1718454655353,-500.0,0.00021917,2]
[329577145,1718454655376,-500.0,0.00021917,2]
[329577146,1718454655408,-500.0,0.00021917,2]
[329577147,1718454655420,-500.0,0.00021917,2]
[329577148,1718454655431,-605.97,0.00021917,2]
[329577149,1718454655446,-500.0,0.00021917,2]
[329577150,1718454655458,-500.0,0.00021917,2]
[329577151,1718454655487,-500.0,0.00021917,2]
[329577152,1718454655500,-500.0,0.00021917,2]
[329577153,1718454655512,-361.10391633,0.00021917,2]
[329577154,1718454655524,-579.06,0.00021917,2]
[329577155,1718454655537,-500.0,0.00021917,2]
[329577156,1718454655579,-500.0,0.00021917,2]
[329577157,1718454655603,-500.0,0.00021917,2]
[329577158,1718454655615,-500.0,0.00021917,2]
[329577159,1718454655628,-500.0,0.00021917,2]
[329577160,1718454655647,-500.0,0.00021917,2]
[329577161,1718454655663,-500.0,0.00021917,2]
[329577162,1718454655677,-500.0,0.00021917,2]
[329577163,1718454655698,-500.0,0.00021917,2]
[329577164,1718454655713,-600.0,0.00021917,2]
[329577165,1718454655731,-500.0,0.00021917,2]
[329577166,1718454655747,-500.0,0.00021917,2]
[329577167,1718454655767,-500.0,0.00021917,2]
[329577168,1718454655789,-500.0,0.00021917,2]
[329577169,1718454655815,-500.0,0.00021917,2]
[329577170,1718454655858,-500.0,0.00021917,2]
[329577171,1718454655877,-500.0,0.00021917,2]
[329577172,1718454655888,-500.0,0.00021917,2]
[329577173,1718454655900,-500.0,0.00021917,2]
[329577174,1718454655912,-500.0,0.00021917,2]
[329577175,1718454655926,-500.0,0.00021917,2]
[329577176,1718454655937,-500.0,0.00021917,2]
[329577177,1718454655948,-500.0,0.00021917,2]
[329577178,1718454655959,-500.0,0.00021917,2]
[329577179,1718454655977,-500.0,0.00021917,2]
[329577180,1718454656152,-1244.47,0.00021917,2]
[329577181,1718454656164,-506.99,0.00021917,2]
[329577182,1718454656188,-500.0,0.00021917,2]
[329577183,1718454656200,-500.0,0.00021917,2]
[329577184,1718454656224,-500.0,0.00021917,2]
[329577185,1718454656239,-500.0,0.00021917,2]
[329577186,1718454656263,-500.0,0.00021917,2]
[329577187,1718454656296,-500.0,0.00021917,2]
[329577188,1718454656329,-500.0,0.00021917,2]
[329577189,1718454656352,-500.0,0.00021917,2]
[329577190,1718454656388,-556.59,0.00021917,2]
[329577191,1718454656413,-500.0,0.00021917,2]
[329577192,1718454656444,-500.0,0.00021917,2]
[329577193,1718454656460,-500.0,0.00021917,2]
[329577194,1718454656473,-500.0,0.00021917,2]
[329577195,1718454656484,-500.0,0.00021917,2]
[329577196,1718454656499,-500.0,0.00021917,2]
[329577197,1718454656510,-500.0,0.00021917,2]
[329577198,1718454656531,-500.0,0.00021917,2]
[329577199,1718454656543,-500.0,0.00021917,2]
[329577200,1718454656557,-500.0,0.00021917,2]
[329577201,1718454656571,-500.0,0.00021917,2]
[329577202,1718454656583,-500.0,0.00021917,2]
[329577203,1718454656595,-500.0,0.00021917,2]
[329577204,1718454656610,-500.0,0.00021917,2]
[329577205,1718454656623,-500.0,0.00021917,2]